bitfinex/quotes_SOLUSD_20230104
["timestamp","ask_amount","ask_price","bid_price","bid_amount"]
[1672792534598,84.04065887,13.859,13.853,2.00096505]
[1672792535026,84.04065887,13.861,13.853,2.00096505]
[1672792535972,71.30358042,13.851,13.844,118.3548]
[1672792536185,84.04065887,13.85,13.831,54.27]
[1672792536388,84.04065887,13.85,13.832,113.4392]
[1672792536603,84.04065887,13.85,13.833,54.26]
[1672792536818,30.0,13.849,13.832,113.4392]
[1672792537023,84.04065887,13.848,13.832,113.4392]
[1672792537352,30.0,13.847,13.832,113.4392]
[1672792537563,84.04065887,13.846,13.832,113.4392]
[1672792538514,84.04065887,13.844,13.832,113.4392]
[1672792539122,84.04065887,13.846,13.832,113.4392]
[1672792539560,84.04065887,13.846,13.832,101.62089567]
[1672792539767,30.0,13.845,13.832,101.62089567]
[1672792539984,30.0,13.843,13.832,101.62089567]
[1672792540175,84.04065887,13.842,13.832,101.62089567]
[1672792540501,84.04065887,13.84,13.832,101.62089567]
[1672792540713,84.04065887,13.84,13.828,127.98462556]
[1672792540714,84.04065887,13.838,13.824,178.78295091]
[1672792540911,30.0,13.837,13.824,124.48295091]
[1672792541122,84.04065887,13.836,13.824,178.78295091]
[1672792541332,30.0,13.835,13.824,178.78295091]
[1672792541551,84.04065887,13.834,13.824,124.48295091]
[1672792542376,84.04065887,13.834,13.825,123.10570092]
[1672792542590,30.0,13.839,13.826,54.29]
[1672792542591,84.04065887,13.836,13.826,54.29]
[1672792542799,84.04065887,13.838,13.826,54.29]
[1672792543959,84.04065887,13.84,13.826,54.29]
[1672792544285,84.04065887,13.846,13.826,54.29]
[1672792544692,84.04065887,13.847,13.826,54.29]
[1672792545130,84.04065887,13.847,13.827,115.6868]
[1672792545452,73.08423378,13.848,13.828,54.28]
[1672792545647,71.30358042,13.851,13.828,54.28]
[1672792552157,42.1334188,13.85,13.828,54.28]
[1672792552377,71.30358042,13.851,13.828,54.28]
[1672792553135,0.00358042,13.851,13.829,30.0]
[1672792553316,73.08423378,13.864,13.831,30.0]
[1672792553527,73.08423378,13.864,13.832,54.27]
[1672792553943,73.08423378,13.862,13.832,54.27]
[1672792554167,73.08423378,13.864,13.832,54.27]
[1672792554379,146.29682484,13.867,13.832,54.27]
[1672792554380,73.08423378,13.863,13.832,54.27]
[1672792554577,73.08423378,13.864,13.832,54.27]
[1672792555220,73.08423378,13.864,13.85,8.87]
[1672792555432,73.08423378,13.864,13.84,44.63]
[1672792556272,73.08423378,13.865,13.84,44.63]
[1672792556591,73.08423378,13.863,13.84,44.63]
[1672792557519,73.08423378,13.861,13.84,8.9]
[1672792557740,73.08423378,13.862,13.84,8.9]
[1672792557936,73.08423378,13.86,13.84,8.9]
[1672792558146,73.08423378,13.862,13.84,8.9]
[1672792558358,146.29682484,13.864,13.84,8.9]
[1672792558359,73.08423378,13.864,13.84,44.59]
[1672792558581,73.08423378,13.864,13.841,118.8634]
[1672792558798,73.08423378,13.863,13.841,118.8634]
[1672792560479,73.08423378,13.861,13.841,118.8634]
[1672792560686,73.08423378,13.863,13.841,118.8634]
[1672792560879,146.29682484,13.859,13.841,118.8634]
[1672792561090,73.08423378,13.856,13.841,118.8634]
[1672792562474,73.08423378,13.856,13.842,0.42312799]
[1672792564470,54.15,13.863,13.842,0.42312799]
[1672792564471,73.08423378,13.858,13.842,0.42312799]
[1672792564664,73.08423378,13.862,13.842,0.42312799]
[1672792564874,146.29682484,13.865,13.842,0.42312799]
[1672792565199,146.29682484,13.866,13.842,0.42312799]
[1672792566158,146.29682484,13.866,13.85,8.9]
[1672792566471,11.46071688,13.87,13.85,8.9]
[1672792566669,11.46071688,13.87,13.851,117.5565]
[1672792567712,146.29682484,13.869,13.851,117.5565]
[1672792568153,11.46071688,13.87,13.851,117.5565]
[1672792569420,146.29682484,13.869,13.851,117.5565]
[1672792569953,157.75754172,13.87,13.851,117.5565]
[1672792570265,11.46071688,13.87,13.851,117.5565]
[1672792570988,221.2475929,13.896,13.86,44.53]
[1672792571196,221.2475929,13.896,13.861,166.8547]
[1672792571405,53.9432886,13.891,13.861,112.6947]
[1672792571948,30.0,13.889,13.861,112.6947]
[1672792572150,54.05,13.888,13.861,112.6947]
[1672792573193,54.04,13.89,13.861,112.6947]
[1672792573515,53.9432886,13.891,13.861,112.6947]
[1672792575522,53.9432886,13.891,13.87,44.53]
[1672792575739,53.9432886,13.891,13.871,114.1794]
[1672792576353,53.9432886,13.891,13.872,30.0]
[1672792576683,53.9432886,13.891,13.88,8.9]
[1672792578362,53.9432886,13.891,13.881,0.38700293]
[1672792578779,0.0032886,13.891,13.881,0.38700293]
[1672792580231,0.0032886,13.891,13.873,30.0]
[1672792580663,0.0032886,13.891,13.871,114.1794]
[1672792580986,54.04,13.89,13.871,114.1794]
[1672792581393,312.81591694,13.89,13.871,554.7129738]
[1672792581604,54.05,13.889,13.871,554.7129738]
[1672792582346,54.05,13.889,13.872,0.39532145]
[1672792583188,55.96670298,13.887,13.872,0.39532145]
[1672792583523,55.96670298,13.885,13.872,440.92889525]
[1672792583834,55.96670298,13.883,13.872,440.92889525]
[1672792584023,55.96670298,13.886,13.872,440.92889525]
[1672792584235,55.96670298,13.884,13.872,440.92889525]
[1672792584449,55.96670298,13.882,13.872,440.92889525]
[1672792584659,55.96670298,13.886,13.872,440.92889525]
[1672792584992,55.96670298,13.884,13.872,440.92889525]
[1672792585515,312.81591694,13.884,13.872,440.92889525]
[1672792585823,83.31946025,13.883,13.872,440.92889525]
[1672792586232,83.31946025,13.883,13.872,441.08159746]
[1672792587387,396.13537719,13.883,13.872,441.08159746]
[1672792587597,395.13537719,13.883,13.872,441.08159746]
[1672792590758,30.0,13.882,13.872,268.97872533]
[1672792590967,136.39946025,13.881,13.872,268.97872533]
[1672792591290,82.31946025,13.879,13.872,268.82602312]
[1672792591503,82.31946025,13.877,13.872,240.70462312]
[1672792591714,54.1,13.876,13.872,157.12002312]
[1672792591904,74.71284464,13.878,13.872,157.12002312]
[1672792592115,74.71284464,13.876,13.872,157.12002312]
[1672792592329,74.71284464,13.878,13.872,154.86902312]
[1672792592535,74.71284464,13.876,13.872,154.86902312]
[1672792592754,74.71284464,13.88,13.872,154.86902312]
[1672792593584,387.52876158,13.88,13.872,154.86902312]
[1672792594007,74.71284464,13.878,13.872,154.86902312]
[1672792594449,74.71284464,13.879,13.872,154.86902312]
[1672792594646,30.0,13.878,13.872,154.86902312]
[1672792594852,74.71284464,13.877,13.872,154.86902312]
[1672792595062,128.80284464,13.879,13.872,154.86902312]
[1672792595491,30.0,13.878,13.872,154.86902312]
[1672792595707,51.52473332,13.876,13.872,154.86902312]
[1672792595922,51.52473332,13.876,13.872,120.70792312]
[1672792596119,54.11074026,13.874,13.872,120.70792312]
[1672792596535,84.1,13.875,13.872,120.70792312]
[1672792596536,110.20476422,13.873,13.872,120.70792312]
[1672792597610,423.02068116,13.873,13.872,120.70792312]
[1672792598344,368.91068116,13.873,13.872,120.70792312]
[1672792599387,56.09476422,13.873,13.872,120.70792312]
[1672792599599,312.81591694,13.873,13.872,120.70792312]
[1672792599906,362.81249504,13.873,13.872,120.70792312]
[1672792600766,362.81249504,13.873,13.872,0.15307689]
[1672792601906,392.81249504,13.873,13.872,0.15307689]
[1672792602116,446.92249504,13.873,13.872,0.15307689]
[1672792602326,392.81249504,13.873,13.872,0.15307689]
[1672792602544,396.92591694,13.873,13.872,0.15307689]
[1672792602761,30.0,13.872,13.864,43.02389712]
[1672792602965,53.54656978,13.87,13.864,43.02389712]
[1672792603183,53.54656978,13.868,13.864,42.02389712]
[1672792603375,30.0,13.867,13.864,42.02389712]
[1672792603711,96.8709348,13.865,13.812,30.0]
[1672792603916,30.0,13.863,13.827,115.902]
[1672792604117,78.66799461,13.862,13.827,115.902]
[1672792604327,44.75,13.85,13.827,115.902]
[1672792604537,78.66799461,13.849,13.827,115.902]
[1672792606542,30.0,13.848,13.827,115.902]
[1672792606740,83.04065887,13.847,13.827,115.902]
[1672792606952,30.0,13.846,13.827,115.902]
[1672792607156,30.0,13.846,13.805,54.37]
[1672792607157,83.04065887,13.845,13.805,54.37]
[1672792607363,113.04065887,13.843,13.806,114.5045]
[1672792607577,83.04065887,13.829,13.806,114.5045]
[1672792608332,83.04065887,13.829,13.824,0.45234484]
[1672792609580,395.85657581,13.829,13.824,0.45234484]
[1672792611060,30.0,13.828,13.824,0.45234484]
[1672792611251,83.04065887,13.827,13.824,0.45234484]
[1672792611463,83.04065887,13.828,13.824,0.45234484]
[1672792611697,708.67249275,13.828,13.824,0.45234484]
[1672792613044,30.0,13.827,13.824,0.45234484]
[1672792613255,83.04065887,13.826,13.824,0.45234484]
[1672792613470,83.04065887,13.827,13.824,0.45234484]
[1672792613682,395.85657581,13.827,13.824,0.45234484]
[1672792617778,312.81591694,13.827,13.824,0.45234484]
[1672792617987,83.04065887,13.826,13.824,0.45234484]
[1672792619769,312.81591694,13.826,13.824,0.45234484]
[1672792619984,64.94576103,13.825,13.824,0.45234484]
[1672792621803,312.81591694,13.825,13.824,0.45234484]
[1672792622113,367.68670415,13.825,13.824,0.45234484]
[1672792623795,312.81591694,13.825,13.824,0.45234484]
[1672792625788,250.25273356,13.825,13.824,0.45234484]
[1672792626192,250.25273356,13.826,13.824,0.45234484]
[1672792626398,500.50546712,13.826,13.824,0.45234484]
[1672792626613,250.25273356,13.826,13.824,0.45234484]
[1672792626824,500.50546712,13.826,13.824,0.45234484]
[1672792627034,234.61193771,13.826,13.824,0.45234484]
[1672792628611,234.61193771,13.83,13.824,0.45234484]
[1672792628612,39.95,26.9,13.824,0.45234484]
[1672792628831,234.61193771,13.826,13.824,0.45234484]
[1672792629033,187.68955017,13.826,13.824,0.45234484]
[1672792632106,150.15164014,13.826,13.824,0.45234484]
[1672792632317,150.15164014,13.83,13.824,0.45234484]
[1672792632318,54.17,13.856,13.824,0.45234484]
[1672792632529,150.15164014,13.826,13.824,0.45234484]
[1672792632721,150.15164014,13.828,13.824,0.45234484]
[1672792632938,360.36492042,13.828,13.824,0.45234484]
[1672792633365,360.36492042,13.828,13.824,0.56543106]
[1672792634094,86.04270015,13.828,13.824,0.56543106]
[1672792634320,86.04270015,13.829,13.824,0.56543106]
[1672792634528,172.0854003,13.829,13.824,0.56543106]
[1672792634720,86.04270015,13.83,13.824,0.56543106]
[1672792634933,258.12810045,13.83,13.824,0.56543106]
[1672792636005,68.68769451,13.83,13.824,0.56543106]
[1672792636398,68.68769451,13.831,13.824,0.56543106]
[1672792636614,68.68769451,13.831,13.825,31.55629974]
[1672792636615,137.37538902,13.831,13.825,31.55629974]
[1672792636837,137.37538902,13.831,13.824,0.56543106]
[1672792637043,54.17,13.857,13.825,30.15773086]
[1672792637259,343.43847255,13.857,13.83,8.95]
[1672792637466,343.43847255,13.857,13.83,44.74]
[1672792637685,54.12,13.869,13.83,44.74]
[1672792637897,343.43847255,13.857,13.831,31.61829326]
[1672792638218,343.43847255,13.857,13.83,8.86]
[1672792638742,8.95,13.86,13.83,8.86]
[1672792638926,68.68769451,13.857,13.83,8.86]
[1672792639137,68.68769451,13.857,13.83,44.66]
[1672792639979,68.68769451,13.857,13.84,8.9]
[1672792640203,68.68769451,13.857,13.84,44.7]
[1672792640716,68.68769451,13.857,13.834,30.0]
[1672792640717,68.68769451,13.857,13.835,54.26]
[1672792641047,68.68769451,13.857,13.834,30.0]
[1672792643761,397.05847255,13.869,13.834,30.0]
[1672792643965,397.05847255,13.869,13.835,34.63251855]
[1672792644191,397.05847255,13.869,13.84,8.9]
[1672792644722,397.05847255,13.869,13.841,27.78091988]
[1672792644915,122.30769451,13.869,13.841,27.78091988]
[1672792645997,122.30769451,13.869,13.84,8.9]
[1672792646408,30.0,13.868,13.84,8.9]
[1672792646612,54.13,13.867,13.84,8.9]
[1672792646818,122.81769451,13.867,13.84,8.9]
[1672792647463,8.95,13.86,13.83,44.66]
[1672792647680,30.0,13.858,13.83,8.99]
[1672792647888,54.17,13.857,13.83,8.99]
[1672792648100,54.16,13.859,13.83,8.99]
[1672792648295,170.0194,13.859,13.83,8.99]
[1672792648720,30.0,13.858,13.83,8.99]
[1672792648952,30.0,13.856,13.827,112.4833]
[1672792649155,54.18,13.855,13.827,112.4833]
[1672792649564,54.17,13.857,13.827,112.4833]
[1672792649779,54.17,13.857,13.82,44.67]
[1672792649984,54.17,13.857,13.821,139.8509]
[1672792650736,8.95,13.85,13.821,109.8509]
[1672792650933,170.0594,13.849,13.821,109.8509]
[1672792651253,6.44279306,13.848,13.821,109.8509]
[1672792651479,170.0594,13.849,13.821,109.8509]
[1672792651480,6.44279306,13.846,13.821,109.8509]
[1672792651662,6.44279306,13.844,13.81,44.79]
[1672792651871,54.23,13.843,13.815,118.187]
[1672792652093,54.21,13.848,13.815,118.187]
[1672792652940,30.0,13.847,13.815,118.187]
[1672792653143,5.0035703,13.845,13.815,118.187]
[1672792653353,5.0035703,13.843,13.815,118.187]
[1672792653560,30.0,13.847,13.815,118.187]
[1672792653561,5.0035703,13.841,13.815,118.187]
[1672792653762,63.14,13.84,13.815,118.187]
[1672792653974,1.20754782,13.839,13.815,118.187]
[1672792654201,54.24,13.838,13.815,118.187]
[1672792654396,54.24,13.839,13.824,0.45234484]
[1672792654602,5.64183655,13.837,13.824,0.45234484]
[1672792654814,5.64183655,13.835,13.824,0.45234484]
[1672792655029,18.81179542,13.833,13.824,0.45234484]
[1672792655677,18.81179542,13.834,13.824,0.45234484]
[1672792656922,87.49948993,13.834,13.824,0.45234484]
[1672792657887,18.81179542,13.834,13.824,0.45234484]
[1672792658095,68.68769451,13.834,13.824,0.45234484]
[1672792660607,8.95,13.83,13.824,0.45234484]
[1672792660813,3.57320289,13.829,13.824,0.45234484]
[1672792661038,72.2608974,13.829,13.824,0.45234484]
[1672792666292,1.20423788,13.828,13.824,0.45234484]
[1672792666693,68.68769451,13.829,13.824,0.45234484]
[1672792667345,68.68769451,13.829,13.808,108.9044]
[1672792667976,44.73,13.83,13.808,108.9044]
[1672792668193,68.68769451,13.829,13.808,108.9044]
[1672792673131,68.68769451,13.829,13.823,50.4464392]
[1672792674073,8.91,13.83,13.823,50.4464392]
[1672792674301,68.68769451,13.829,13.823,50.4464392]
[1672792674701,30.0,13.828,13.823,3.92e-05]
[1672792675032,48.81179542,13.826,13.823,3.92e-05]
[1672792675223,54.3,13.825,13.823,3.92e-05]
[1672792675433,18.81179542,13.824,13.823,3.92e-05]
[1672792675658,18.81179542,13.826,13.823,3.92e-05]
[1672792676283,185.55039451,13.828,13.823,3.92e-05]
[1672792677859,54.29,13.827,13.823,3.92e-05]
[1672792678285,0.0599608,13.822,13.803,50.9464392]
[1672792680284,8.95,13.82,13.803,50.9464392]
[1672792681029,5.84565794,13.819,13.803,50.9464392]
[1672792682081,8.9,13.81,13.803,50.9464392]
[1672792683344,11.30775746,13.809,13.803,50.9464392]
[1672792685127,79.99545197,13.809,13.803,50.9464392]
[1672792688290,68.68769451,13.809,13.803,50.9464392]
[1672792689327,274.75847253,13.809,13.804,61.606329]
[1672792690173,175.83179798,13.809,13.804,61.606329]
[1672792690596,83.94969798,13.809,13.804,61.606329]
[1672792690786,0.00969798,13.809,13.804,61.606329]
[1672792690997,146.70549999,13.838,13.806,61.68370136]
[1672792691207,119.6061,13.839,13.811,64.93359731]
[1672792691422,119.6061,13.839,13.813,64.93359731]
[1672792693956,173.8461,13.839,13.813,64.93359731]
[1672792695326,173.8461,13.839,13.81,64.93359731]
[1672792695539,146.70549999,13.835,13.809,30.0]
[1672792695726,54.26,13.834,13.81,72.5414]
[1672792696359,54.26,13.834,13.811,72.5414]
[1672792696570,134.4,13.82,13.811,72.5414]
[1672792696794,134.33,13.82,13.809,30.0]
[1672792699442,134.33,13.82,13.809,249.82388819]
[1672792700264,89.53,13.83,13.809,249.82388819]
[1672792701410,44.8,13.82,13.809,249.82388819]
[1672792701622,44.69,13.82,13.809,249.82388819]
[1672792704355,89.53,13.83,13.809,304.18388819]
[1672792705729,35.79,13.83,13.809,304.18388819]
[1672792707088,8.91,13.82,13.809,304.18388819]
[1672792707299,35.79,13.83,13.809,304.18388819]
[1672792708230,44.85,13.83,13.809,304.18388819]
[1672792708445,2.97898679,13.829,13.809,304.18388819]
[1672792708876,44.85,13.83,13.809,304.18388819]
[1672792709083,35.85,13.83,13.809,304.18388819]
[1672792709281,44.75,13.82,13.809,304.18388819]
[1672792709495,26.92,13.82,13.809,304.18388819]
[1672792709721,89.6,13.83,13.809,304.18388819]
[1672792709934,89.54,13.84,13.809,304.18388819]
[1672792710126,35.93,13.83,13.811,30.0]
[1672792710331,35.93,13.83,13.812,54.35]
[1672792710552,35.93,13.83,13.813,30.0]
[1672792710776,35.93,13.83,13.815,30.0]
[1672792711396,8.96,13.82,13.815,218.73461821]
[1672792711605,35.93,13.83,13.815,218.73461821]
[1672792713190,44.82,13.82,13.815,188.73461821]
[1672792713385,44.82,13.82,13.812,23.7771]
[1672792713597,44.82,13.82,13.815,188.73461821]
[1672792719494,54.28,13.829,13.812,23.7771]
[1672792719813,89.7,13.83,13.815,188.73461821]
[1672792720019,44.8,13.82,13.815,188.73461821]
[1672792720227,44.8,13.82,13.816,30.0]
[1672792720440,134.34,13.83,13.816,30.0]
[1672792721494,44.78,13.83,13.816,218.73461821]
[1672792722565,44.78,13.83,13.818,30.0]
[1672792722979,8.98,13.83,13.818,30.0]
[1672792723384,8.98,13.83,13.82,30.0]
[1672792723596,8.98,13.83,13.82,218.73461821]
[1672792723597,0.0001,13.83,13.82,218.73461821]
[1672792724220,0.0001,13.83,13.822,30.0]
[1672792724432,44.76,13.84,13.823,54.3]
[1672792724656,8.92,13.84,13.824,30.0]
[1672792724869,8.91,13.84,13.826,30.0]
[1672792725182,8.91,13.84,13.827,54.29]
[1672792725382,8.91,13.84,13.828,30.0]
[1672792725594,8.91,13.84,13.828,209.14470025]
[1672792726125,35.88,13.85,13.828,209.14470025]
[1672792726325,8.96,13.84,13.828,209.14470025]
[1672792727064,35.88,13.85,13.828,209.14470025]
[1672792727264,17.95,13.85,13.83,30.0]
[1672792727477,9.02,13.85,13.832,30.0]
[1672792727688,0.00898679,13.849,13.833,54.26]
[1672792727918,8.91,13.85,13.834,30.0]
[1672792728129,8.91,13.85,13.836,30.0]
[1672792728339,35.84,13.86,13.837,54.25]
[1672792728538,44.89,13.86,13.838,30.0]
[1672792728740,0.00898679,13.849,13.839,54.24]
[1672792728959,2.97,13.859,13.84,30.0]
[1672792729164,2.97898679,13.859,13.842,30.0]
[1672792729377,2.97898679,13.859,13.843,54.23]
[1672792729588,8.94,13.86,13.843,738.02225728]
[1672792730128,8.94,13.86,13.844,30.0]
[1672792730325,44.86,13.87,13.845,54.22]
[1672792730539,0.00898679,13.859,13.846,30.0]
[1672792730747,44.86,13.87,13.847,54.21]
[1672792731069,44.86,13.87,13.848,30.0]
[1672792731271,44.86,13.87,13.849,54.2]
[1672792731272,2.81007997,13.869,13.849,54.2]
[1672792731801,44.86,13.87,13.85,30.0]
[1672792731996,2.81007997,13.869,13.852,30.0]
[1672792732216,2.81007997,13.869,13.853,54.19]
[1672792732414,44.86,13.87,13.853,866.69]
[1672792732629,44.86,13.87,13.854,30.0]
[1672792732850,54.05,13.887,13.854,30.0]
[1672792732851,35.81,13.88,13.856,30.0]
[1672792733059,8.87,13.87,13.857,54.17]
[1672792733289,44.7,13.87,13.856,84.17]
[1672792733599,44.7,13.87,13.856,665.84266748]
[1672792734962,44.7,13.87,13.856,720.01266748]
[1672792735168,44.7,13.87,13.856,665.84266748]
[1672792735912,44.7,13.87,13.856,635.84266748]
[1672792736121,134.3,13.87,13.856,635.84266748]
[1672792736445,134.35,13.87,13.857,30.0]
[1672792736746,44.85,13.87,13.857,30.0]
[1672792737376,44.85,13.87,13.857,26.38810348]
[1672792737787,44.85,13.87,13.857,662.23077096]
[1672792738000,134.45,13.87,13.857,635.84266748]
[1672792738216,54.12,13.869,13.857,635.84266748]
[1672792739696,134.45,13.87,13.857,635.84266748]
[1672792741369,54.12,13.869,13.857,635.84266748]
[1672792742419,30.0,13.868,13.857,635.84266748]
[1672792742614,277.69,13.87,13.857,635.84266748]
[1672792742615,134.39,13.87,13.857,635.84266748]
[1672792745058,134.39,13.87,13.858,30.0]
[1672792745466,44.82,13.87,13.858,30.0]
[1672792745783,44.82,13.87,13.858,665.84266748]
[1672792747568,134.42,13.87,13.858,665.84266748]
[1672792749474,44.82,13.87,13.858,665.84266748]
[1672792750099,44.82,13.87,13.859,54.16]
[1672792750416,44.82,13.87,13.86,30.0]
[1672792751456,24.1408,13.885,13.861,54.16]
[1672792751682,8.87,13.87,13.862,30.0]
[1672792751928,35.7,13.88,13.863,54.15]
[1672792752214,8.87,13.87,13.864,30.0]
[1672792752408,35.7,13.88,13.864,30.0]
[1672792752833,35.7,13.88,13.864,84.14]
[1672792753356,8.87,13.87,13.864,30.0]
[1672792753772,44.7,13.87,13.863,30.0]
[1672792753986,44.7,13.87,13.865,30.0]
[1672792754205,116.0466,13.879,13.865,30.0]
[1672792759979,170.1366,13.879,13.864,635.84266748]
[1672792760191,44.79,13.87,13.864,635.84266748]
[1672792761468,44.79,13.87,13.865,30.0]
[1672792761669,170.1366,13.879,13.865,30.0]
[1672792761670,116.0466,13.879,13.865,30.0]
[1672792762207,170.1366,13.879,13.865,30.0]
[1672792763371,116.0466,13.879,13.865,30.0]
[1672792764629,116.0466,13.879,13.864,635.84266748]
[1672792764833,44.8,13.87,13.864,635.84266748]
[1672792765561,44.8,13.87,13.865,30.0]
[1672792765767,116.0466,13.879,13.865,30.0]
[1672792765993,170.1366,13.879,13.865,30.0]
[1672792766184,116.0466,13.879,13.865,30.0]
[1672792766830,44.82,13.88,13.865,30.0]
[1672792768636,134.5,13.88,13.864,635.84266748]
[1672792768851,44.82,13.87,13.864,635.84266748]
[1672792769407,44.82,13.87,13.865,30.0]
[1672792769570,108.8029,13.878,13.865,30.0]
[1672792769779,54.09,13.877,13.865,30.0]
[1672792769987,54.09,13.877,13.864,635.84266748]
[1672792770349,44.91,13.87,13.864,635.84266748]
[1672792770627,134.37,13.87,13.864,625.36716748]
[1672792772632,134.37,13.87,13.864,602.37366748]
[1672792773785,134.37,13.87,13.864,11.26656748]
[1672792773786,84.12,13.869,13.864,11.26656748]
[1672792773986,30.0,13.867,13.85,264.6]
[1672792774203,134.2,13.86,13.85,264.6]
[1672792774614,83.74539273,13.859,13.842,186.8408]
[1672792775352,30.0,13.858,13.842,186.8408]
[1672792775619,83.74539273,13.857,13.842,186.8408]
[1672792776862,83.74539273,13.859,13.842,186.8408]
[1672792777438,83.74539273,13.857,13.842,186.8408]
[1672792777800,30.0,13.856,13.842,186.8408]
[1672792778003,83.74539273,13.855,13.842,186.8408]
[1672792778712,83.74539273,13.857,13.842,186.8408]
[1672792778925,277.73,13.86,13.842,186.8408]
[1672792778926,83.74539273,13.859,13.842,186.8408]
[1672792779148,83.74539273,13.859,13.843,77.9495898]
[1672792779551,83.74539273,13.859,13.844,84.22]
[1672792779817,44.65,13.86,13.845,30.0]
[1672792779970,44.65,13.86,13.846,54.21]
[1672792780184,44.65,13.86,13.845,30.0]
[1672792780185,89.54,13.87,13.85,84.2]
[1672792780384,35.8,13.87,13.851,30.0]
[1672792780596,8.98,13.87,13.852,54.19]
[1672792780860,8.98,13.87,13.853,30.0]
[1672792781061,8.98,13.87,13.854,54.18]
[1672792781246,8.98,13.87,13.855,30.0]
[1672792781486,8.98,13.87,13.857,30.0]
[1672792781815,8.98,13.87,13.859,30.0]
[1672792781959,44.82,13.87,13.859,30.0]
[1672792782611,44.82,13.87,13.859,26.38862472]
[1672792782821,44.82,13.87,13.857,30.0]
[1672792784725,44.82,13.87,13.856,54.17]
[1672792784916,44.82,13.87,13.854,54.18]
[1672792785127,8.96,13.86,13.854,54.18]
[1672792785330,8.98,13.87,13.855,812.5]
[1672792785657,8.98,13.87,13.856,30.0]
[1672792785969,44.82,13.87,13.856,30.0]
[1672792786175,44.82,13.87,13.855,812.5]
[1672792786176,54.12,13.869,13.855,812.5]
[1672792789558,30.0,13.863,13.843,47.9495898]
[1672792789734,134.3,13.86,13.843,47.9495898]
[1672792789951,132.76717232,13.859,13.843,47.9495898]
[1672792792268,78.60717232,13.859,13.843,47.9495898]
[1672792794264,100.0,26.473,13.85,30.0]
[1672792794265,149.16674211,13.877,13.85,30.0]
[1672792794472,108.7071,13.894,13.852,30.0]
[1672792794699,2.68850364,13.876,13.853,133.09243846]
[1672792795110,54.03,13.893,13.854,30.0]
[1672792795309,54.03,13.893,13.855,133.08243846]
[1672792795639,44.71,13.88,13.856,125.041]
[1672792795852,44.67,13.88,13.857,133.07243846]
[1672792796057,44.67,13.88,13.858,30.0]
[1672792796382,44.67,13.88,13.86,30.0]
[1672792796593,44.67,13.88,13.861,78.90243846]
[1672792796775,44.67,13.88,13.862,30.0]
[1672792797002,44.67,13.88,13.863,78.90243846]
[1672792797310,44.67,13.88,13.865,78.90243846]
[1672792797605,44.67,13.88,13.867,78.90243846]
[1672792797724,44.67,13.88,13.868,30.0]
[1672792797939,44.67,13.88,13.869,78.90243846]
[1672792798144,44.67,13.88,13.871,78.90243846]
[1672792798571,44.67,13.88,13.873,78.90243846]
[1672792798779,35.89,13.89,13.875,78.90243846]
[1672792798991,44.77,13.89,13.876,30.0]
[1672792799204,44.83,13.89,13.877,78.90243846]
[1672792799411,54.05,13.889,13.877,78.90243846]
[1672792799613,54.05,13.889,13.873,78.90243846]
[1672792800031,54.05,13.889,13.869,78.90243846]
[1672792800247,44.8,13.88,13.869,78.90243846]
[1672792800454,44.69,13.88,13.869,78.90243846]
[1672792801817,44.69,13.88,13.868,23.7687]
[1672792802030,44.69,13.88,13.869,78.90243846]
[1672792802362,134.35,13.88,13.868,23.7687]
[1672792804533,44.76,13.88,13.868,23.7687]
[1672792804861,44.76,13.88,13.869,41.47256991]
[1672792804964,44.76,13.88,13.868,23.7687]
[1672792805184,44.76,13.88,13.869,30.0]